bitfinex/quotes_SOLUSD_20230105
["timestamp","ask_amount","ask_price","bid_price","bid_amount"]
[1672890391919,46.86241257,13.191,13.183,20.0]
[1672890393512,56.87,13.197,13.183,20.0]
[1672890393720,20.0,13.196,13.186,20.0]
[1672890393955,20.0,13.196,13.187,226.4]
[1672890394253,56.88,13.195,13.188,20.0]
[1672890394456,20.0,13.194,13.188,20.0]
[1672890394652,42.65961325,13.196,13.188,20.0]
[1672890396247,20.0,13.196,13.188,20.0]
[1672890396440,20.0,13.199,13.188,20.0]
[1672890396863,56.86,13.198,13.188,20.0]
[1672890397068,20.0,13.197,13.188,20.0]
[1672890397500,56.87,13.196,13.188,20.0]
[1672890397713,20.0,13.195,13.188,20.0]
[1672890398234,20.0,13.196,13.188,20.0]
[1672890400120,42.65961325,13.196,13.188,20.0]
[1672890400310,56.88,13.195,13.186,75.77]
[1672890400524,20.0,13.194,13.175,76.96]
[1672890400735,20.0,13.193,13.175,20.0]
[1672890400948,20.0,13.192,13.175,20.0]
[1672890401155,165.84838974,13.192,13.175,20.0]
[1672890401482,204.02971853,13.191,13.177,302.17]
[1672890401693,20.0,13.19,13.177,302.17]
[1672890401896,130.72358216,13.19,13.179,75.77]
[1672890402106,155.39126912,13.189,13.179,75.77]
[1672890402420,130.72358216,13.188,13.179,75.77]
[1672890402858,168.92491095,13.187,13.179,95.77]
[1672890403043,20.0,13.186,13.179,95.77]
[1672890403262,42.65961325,13.186,13.179,95.77]
[1672890403484,79.57961325,13.185,13.179,95.77]
[1672890403680,20.0,13.184,13.179,95.77]
[1672890403892,42.65961325,13.184,13.179,75.77]
[1672890404230,22.65961325,13.183,13.177,302.17]
[1672890404411,79.58961325,13.183,13.177,302.17]
[1672890404850,22.65961325,13.182,13.177,302.17]
[1672890406430,22.65961325,13.182,13.175,75.77]
[1672890406745,22.65961325,13.182,13.174,344.7843]
[1672890407057,22.65961325,13.182,13.172,75.77]
[1672890407460,22.65961325,13.182,13.172,226.4]
[1672890407461,56.94,13.181,13.172,226.4]
[1672890407895,22.65961325,13.18,13.172,226.4]
[1672890408085,22.65961325,13.18,13.173,20.0]
[1672890418510,56.93,13.183,13.176,20.0]
[1672890418717,42.65961325,13.184,13.176,20.0]
[1672890419858,20.0,13.184,13.176,20.0]
[1672890420091,20.0,13.183,13.178,20.0]
[1672890420300,20.0,13.185,13.178,20.0]
[1672890420612,20.0,13.185,13.178,246.4]
[1672890420834,20.0,13.185,13.179,20.0]
[1672890421017,56.91,13.187,13.18,17.0]
[1672890421229,117.1279,13.199,13.181,226.4]
[1672890421440,117.1279,13.199,13.184,226.4]
[1672890421663,108.72157761,13.198,13.186,20.0]
[1672890421868,165.58157761,13.198,13.186,20.0]
[1672890422090,22.65961325,13.197,13.186,20.0]
[1672890422400,142.92196436,13.198,13.186,20.0]
[1672890422607,56.87,13.196,13.186,246.4]
[1672890422816,56.87,13.197,13.186,246.4]
[1672890423244,20.0,13.196,13.186,246.4]
[1672890424375,42.65961325,13.196,13.187,17.0]
[1672890424591,42.65961325,13.196,13.188,20.0]
[1672890424800,42.65961325,13.196,13.189,226.4]
[1672890425027,20.0,13.196,13.19,20.0]
[1672890425343,20.0,13.197,13.19,20.0]
[1672890427021,76.86,13.198,13.19,20.0]
[1672890427430,42.65961325,13.198,13.19,20.0]
[1672890427637,22.65961325,13.198,13.19,20.0]
[1672890427847,22.65961325,13.198,13.192,246.4]
[1672890428057,56.85,13.201,13.192,246.4]
[1672890428279,79.50961325,13.202,13.192,246.4]
[1672890428489,22.65961325,13.201,13.192,246.4]
[1672890428693,22.65961325,13.201,13.192,226.4]
[1672890428914,22.65961325,13.201,13.191,226.4]
[1672890429326,22.65961325,13.201,13.192,20.0]
[1672890431129,56.85,13.2,13.191,226.4]
[1672890431543,22.65961325,13.199,13.191,226.4]
[1672890434371,22.65961325,13.199,13.192,20.0]
[1672890436888,56.84,13.204,13.193,17.0]
[1672890437112,20.0,13.203,13.196,226.4]
[1672890437728,20.0,13.204,13.197,20.0]
[1672890438159,20.0,13.204,13.197,246.4]
[1672890439103,20.0,13.204,13.197,20.0]
[1672890439312,20.0,13.204,13.198,226.4]
[1672890439530,20.0,13.204,13.199,20.0]
[1672890440375,20.0,13.204,13.199,246.4]
[1672890441107,20.0,13.205,13.199,246.4]
[1672890441430,20.0,13.206,13.199,20.0]
[1672890444163,20.0,13.206,13.197,20.0]
[1672890444367,76.83,13.206,13.197,20.0]
[1672890446987,20.0,13.206,13.197,20.0]
[1672890447201,20.0,13.206,13.199,20.0]
[1672890450268,20.0,13.206,13.201,20.0]
[1672890450477,20.0,13.207,13.201,20.0]
[1672890451001,56.83,13.206,13.2,226.4]
[1672890451210,20.0,13.205,13.2,226.4]
[1672890451427,20.0,13.205,13.198,20.0]
[1672890451626,20.0,13.206,13.198,20.0]
[1672890451950,24.07697517,13.206,13.196,226.4]
[1672890452165,92.66443119,13.205,13.196,226.4]
[1672890452349,20.0,13.204,13.196,226.4]
[1672890454916,56.84,13.203,13.196,226.4]
[1672890455079,76.84,13.204,13.196,226.4]
[1672890456571,76.84,13.204,13.192,75.77]
[1672890456763,202.28839913,13.204,13.186,56.92]
[1672890456968,20.0,13.202,13.187,20.0]
[1672890457199,20.0,13.201,13.187,20.0]
[1672890457515,42.65961325,13.2,13.187,20.0]
[1672890457729,20.0,13.199,13.187,246.4]
[1672890457935,158.16413424,13.199,13.187,246.4]
[1672890458242,81.30413424,13.198,13.187,246.4]
[1672890458457,121.21692814,13.198,13.187,246.4]
[1672890458690,101.30413424,13.197,13.187,246.4]
[1672890459007,101.30413424,13.197,13.188,226.4]
[1672890459322,81.30413424,13.196,13.188,226.4]
[1672890459713,101.30413424,13.195,13.188,226.4]
[1672890460148,101.30413424,13.194,13.188,226.4]
[1672890460566,22.65961325,13.193,13.188,226.4]
[1672890460984,22.65961325,13.193,13.185,226.4]
[1672890461193,22.65961325,13.193,13.186,20.0]
[1672890463201,22.65961325,13.193,13.188,226.4]
[1672890464148,78.64452099,13.194,13.185,226.4]
[1672890464361,78.64452099,13.194,13.186,20.0]
[1672890464553,101.30413424,13.194,13.189,226.4]
[1672890466158,101.30413424,13.194,13.186,246.4]
[1672890466887,101.30413424,13.194,13.189,302.17]
[1672890467494,58.64452099,13.193,13.189,302.17]
[1672890467929,22.65961325,13.192,13.187,302.17]
[1672890471495,20.0,13.194,13.19,226.4]
[1672890471707,20.0,13.193,13.19,226.4]
[1672890472133,20.0,13.195,13.19,226.4]
[1672890474347,78.64452099,13.195,13.187,226.4]
[1672890474561,78.64452099,13.195,13.188,75.77]
[1672890474775,101.30413424,13.195,13.184,20.0]
[1672890475507,101.30413424,13.195,13.187,20.0]
[1672890475718,158.18413424,13.195,13.187,20.0]
[1672890475918,158.18413424,13.195,13.186,302.17]
[1672890476770,101.30413424,13.195,13.186,302.17]
[1672890476971,101.30413424,13.195,13.189,226.4]
[1672890478030,101.30413424,13.195,13.188,302.17]
[1672890478248,101.30413424,13.195,13.189,20.0]
[1672890478764,101.30413424,13.195,13.188,302.17]
[1672890482135,78.64452099,13.195,13.188,302.17]
[1672890482344,78.64452099,13.195,13.19,226.4]
[1672890482557,20.0,13.195,13.191,20.0]
[1672890482759,20.0,13.198,13.191,20.0]
[1672890483173,102.79022152,13.199,13.191,20.0]
[1672890483381,56.82,13.207,13.194,20.0]
[1672890483701,58.21118766,13.204,13.194,20.0]
[1672890483917,20.0,13.203,13.197,20.0]
[1672890484122,20.0,13.203,13.198,17.0]
[1672890484333,20.0,13.203,13.199,20.0]
[1672890484537,58.21118766,13.204,13.199,20.0]
[1672890485896,48.48427754,13.212,13.199,20.0]
[1672890485897,56.81,13.211,13.201,226.4]
[1672890486132,56.79,13.214,13.203,302.17]
[1672890486444,56.79,13.215,13.204,20.0]
[1672890486639,56.79,13.215,13.205,75.77]
[1672890486976,83.46331041,13.215,13.205,75.77]
[1672890487186,20.0,13.214,13.205,75.77]
[1672890487707,56.8,13.213,13.205,75.77]
[1672890488335,56.8,13.213,13.204,20.0]
[1672890488734,56.8,13.213,13.206,20.0]
[1672890489890,76.79,13.214,13.206,20.0]
[1672890490937,76.79,13.214,13.207,302.17]
[1672890491163,76.79,13.214,13.208,20.0]
[1672890491689,76.79,13.214,13.206,20.0]
[1672890492856,76.79,13.214,13.204,20.0]
[1672890493059,76.79,13.214,13.207,75.77]
[1672890493586,76.79,13.214,13.206,20.0]
[1672890494323,76.79,13.214,13.207,75.77]
[1672890496323,76.79,13.214,13.206,20.0]
[1672890496537,76.79,13.214,13.207,75.77]
[1672890497896,76.79,13.214,13.206,20.0]
[1672890498341,76.79,13.214,13.208,20.0]
[1672890499044,76.79,13.214,13.207,75.77]
[1672890500227,76.79,13.214,13.206,20.0]
[1672890500838,76.79,13.214,13.207,75.77]
[1672890501798,76.79,13.214,13.206,20.0]
[1672890502970,76.79,13.214,13.206,322.17]
[1672890503989,76.79,13.214,13.206,75.77]
[1672890504307,122.39677323,13.214,13.206,75.77]
[1672890504522,157.51850443,13.214,13.206,75.77]
[1672890505159,157.51850443,13.214,13.205,75.77]
[1672890506095,20.0,13.213,13.199,226.4]
[1672890506300,20.0,13.212,13.199,226.4]
[1672890506635,20.0,13.211,13.199,226.4]
[1672890506836,20.0,13.21,13.199,226.4]
[1672890507047,147.25351293,13.21,13.2,226.4]
[1672890507258,84.17783776,13.209,13.201,75.77]
[1672890507485,20.0,13.208,13.201,75.77]
[1672890507682,165.08850442,13.208,13.201,75.77]
[1672890508006,108.26850442,13.208,13.201,75.77]
[1672890508405,165.08850442,13.208,13.201,75.77]
[1672890508632,58.57106453,13.208,13.201,75.77]
[1672890508833,56.60505702,13.207,13.197,226.4]
[1672890509049,20.0,13.205,13.196,56.87]
[1672890509257,20.0,13.204,13.195,193.011]
[1672890510003,20.0,13.204,13.195,419.411]
[1672890511055,20.0,13.204,13.197,302.17]
[1672890511478,20.0,13.204,13.198,95.77]
[1672890511881,20.0,13.204,13.198,75.77]
[1672890512610,20.0,13.204,13.198,95.77]
[1672890515152,20.0,13.204,13.198,75.77]
[1672890515351,20.0,13.204,13.197,75.77]
[1672890515559,20.0,13.204,13.198,95.77]
[1672890515769,20.0,13.204,13.198,75.77]
[1672890516626,20.0,13.204,13.197,75.77]
[1672890517657,20.0,13.204,13.196,75.77]
[1672890518820,45.95923189,13.204,13.191,56.89]
[1672890519021,45.95923189,13.204,13.185,75.77]
[1672890519022,150.82937919,13.203,13.189,56.9]
[1672890519255,20.0,13.202,13.189,56.9]
[1672890519446,20.0,13.201,13.187,75.77]
[1672890519660,154.92654036,13.201,13.188,119.1586]
[1672890519862,20.0,13.199,13.191,302.17]
[1672890520075,20.0,13.198,13.191,226.4]
[1672890520295,139.94861108,13.198,13.191,302.17]
[1672890520500,66.03044733,13.197,13.191,302.17]
[1672890520719,20.0,13.196,13.191,302.17]
[1672890521036,42.65961325,13.196,13.191,302.17]
[1672890521238,22.65961325,13.195,13.191,302.17]
[1672890521447,20.0,13.194,13.191,302.17]
[1672890521781,42.65961325,13.194,13.191,302.17]
[1672890523051,20.0,13.194,13.191,302.17]
[1672890523265,20.0,13.195,13.191,302.17]
[1672890523577,42.65961325,13.195,13.191,302.17]
[1672890524321,42.65961325,13.195,13.188,62.2486]
[1672890524322,42.65961325,13.195,13.189,226.4]
[1672890525780,42.65961325,13.195,13.191,302.17]
[1672890527677,42.65961325,13.195,13.188,62.2486]
[1672890527678,42.65961325,13.195,13.189,302.17]
[1672890531046,42.65961325,13.195,13.189,226.4]
[1672890538190,20.0,13.195,13.189,226.4]
[1672890538712,56.84,13.204,13.191,226.4]
[1672890538917,56.84,13.204,13.191,339.6515]
[1672890539131,55.41692711,13.203,13.194,20.0]
[1672890539361,108.84089575,13.203,13.194,20.0]
[1672890539566,22.65961325,13.202,13.194,20.0]
[1672890539977,22.65961325,13.202,13.196,20.0]
[1672890542518,22.65961325,13.202,13.195,226.4]
[1672890543041,22.65961325,13.202,13.196,20.0]
[1672890545566,22.65961325,13.202,13.195,226.4]
[1672890545984,22.65961325,13.202,13.196,20.0]
[1672890546722,86.1812825,13.203,13.196,20.0]
[1672890550188,86.1812825,13.203,13.195,246.4]
[1672890550721,86.1812825,13.203,13.195,20.0]
[1672890555245,86.1812825,13.203,13.194,302.17]
[1672890555956,55.41692711,13.203,13.194,20.0]
[1672890556168,98.30104031,13.202,13.191,339.6515]
[1672890556379,155.15104031,13.202,13.192,20.0]
[1672890556588,51.77692711,13.201,13.191,339.6515]
[1672890556794,98.30104031,13.201,13.191,339.6515]
[1672890557004,20.0,13.199,13.191,339.6515]
[1672890557210,56.85,13.2,13.191,339.6515]
[1672890558267,155.15104031,13.201,13.191,339.6515]
[1672890558477,79.69703606,13.2,13.189,56.9]
[1672890558688,20.0,13.198,13.188,288.6486]
[1672890558891,20.0,13.197,13.188,288.6486]
[1672890559110,156.56703606,13.197,13.188,288.6486]
[1672890559431,99.69703606,13.197,13.188,288.6486]
[1672890559757,46.5241132,13.196,13.188,288.6486]
[1672890559966,20.0,13.195,13.188,288.6486]
[1672890563959,20.0,13.195,13.185,359.09]
[1672890564171,77.03742281,13.195,13.185,302.17]
[1672890564376,77.03742281,13.195,13.186,56.92]
[1672890564694,203.10114926,13.195,13.185,302.17]
[1672890565017,146.22114926,13.195,13.185,302.17]
[1672890565329,123.56153601,13.195,13.185,302.17]
[1672890566907,123.56153601,13.195,13.188,20.0]
[1672890567318,123.56153601,13.195,13.187,226.4]
[1672890569006,123.56153601,13.195,13.186,20.0]
[1672890569218,123.56153601,13.195,13.188,226.4]
[1672890569427,123.56153601,13.195,13.189,20.0]
[1672890569944,123.56153601,13.195,13.188,226.4]
[1672890570362,123.56153601,13.195,13.187,20.0]
[1672890571752,123.56153601,13.195,13.186,226.4]
[1672890572491,123.56153601,13.195,13.185,20.0]
[1672890573009,123.56153601,13.195,13.185,303.32]
[1672890574591,123.56153601,13.195,13.183,75.77]
[1672890574592,123.56153601,13.195,13.187,20.0]
[1672890574798,123.56153601,13.195,13.186,226.4]
[1672890575629,123.56153601,13.195,13.185,20.0]
[1672890577340,123.56153601,13.195,13.184,302.17]
[1672890577645,123.56153601,13.195,13.185,283.32]
[1672890577834,123.56153601,13.195,13.184,56.92]
[1672890578049,20.0,13.193,13.18,56.94]
[1672890578261,20.0,13.193,13.177,20.0]
[1672890578584,159.90786211,13.192,13.178,56.95]
[1672890578780,187.35277899,13.192,13.178,56.95]
[1672890578987,20.0,13.19,13.179,75.77]
[1672890579313,118.77623238,13.189,13.179,302.17]
[1672890579529,203.12114926,13.189,13.179,302.17]
[1672890579718,52.25211918,13.188,13.179,302.17]
[1672890579934,20.0,13.187,13.179,302.17]
[1672890580151,44.8072023,13.187,13.179,302.17]
[1672890580365,22.14758905,13.187,13.18,20.0]
[1672890581005,22.14758905,13.187,13.179,20.0]
[1672890581215,22.14758905,13.187,13.18,226.4]
[1672890582137,22.14758905,13.187,13.179,226.4]
[1672890582346,22.14758905,13.187,13.18,20.0]
[1672890583103,22.14758905,13.187,13.179,226.4]
[1672890583294,77.03742281,13.187,13.179,226.4]
[1672890584355,46.5241132,13.189,13.181,226.4]
[1672890584682,46.5241132,13.194,13.182,17.0]
[1672890584867,46.5241132,13.194,13.183,246.4]
[1672890585082,56.89,13.193,13.183,246.4]
[1672890585731,56.89,13.193,13.183,322.17]
[1672890586903,22.65961325,13.193,13.183,322.17]
[1672890587110,56.89,13.192,13.183,322.17]
[1672890587427,22.65961325,13.191,13.183,322.17]
[1672890589526,22.65961325,13.191,13.184,226.4]
[1672890590477,22.65961325,13.191,13.183,95.77]
[1672890590785,22.65961325,13.191,13.184,226.4]
[1672890591835,22.65961325,13.191,13.184,20.0]
[1672890592786,56.87,13.197,13.184,20.0]
[1672890592994,20.0,13.196,13.186,20.0]
[1672890593197,20.0,13.196,13.187,226.4]
[1672890594257,20.0,13.196,13.188,20.0]
[1672890594863,20.0,13.196,13.189,17.0]
[1672890595074,20.0,13.197,13.19,20.0]
[1672890596260,56.87,13.196,13.189,226.4]
[1672890596443,20.0,13.195,13.189,226.4]
[1672890597093,20.0,13.196,13.186,302.17]
[1672890597948,20.0,13.196,13.187,20.0]
[1672890599394,20.0,13.196,13.186,302.17]
[1672890600666,20.0,13.196,13.187,20.0]
[1672890601602,20.0,13.196,13.186,302.17]
[1672890610032,20.0,13.196,13.183,226.4]
[1672890610221,20.0,13.196,13.186,226.4]
[1672890611184,61.44302936,13.196,13.186,226.4]
[1672890611378,61.44302936,13.196,13.186,302.17]
[1672890613157,78.79613869,13.196,13.186,302.17]
[1672890619176,78.79613869,13.196,13.187,56.91]
[1672890619384,78.79613869,13.196,13.186,302.17]
[1672890619580,78.79613869,13.196,13.186,75.77]
[1672890620129,96.92905766,13.196,13.186,75.77]
[1672890620643,96.92905766,13.196,13.186,132.69]
[1672890621365,96.92905766,13.196,13.186,95.77]
[1672890621574,96.92905766,13.196,13.186,75.77]
[1672890621794,96.92905766,13.196,13.186,132.69]
[1672890622330,96.92905766,13.196,13.186,56.92]
[1672890622539,96.92905766,13.196,13.186,75.77]
[1672890624005,96.92905766,13.196,13.185,75.77]
[1672890624445,96.92905766,13.196,13.183,75.77]
[1672890624659,96.92905766,13.196,13.184,56.92]
[1672890624972,96.92905766,13.196,13.185,75.77]
[1672890626130,20.0,13.194,13.184,75.77]
[1672890626321,20.0,13.193,13.184,75.77]
[1672890631592,20.0,13.193,13.183,56.93]
[1672890631992,20.0,13.193,13.183,132.7]
[1672890632201,39.30228398,13.193,13.183,132.7]
[1672890632416,61.44302936,13.193,13.183,132.7]
[1672890635068,20.0,13.192,13.183,56.93]
[1672890635386,20.0,13.19,13.182,56.93]
[1672890635699,61.44302936,13.189,13.181,111.0996]
[1672890639060,61.44302936,13.189,13.178,56.95]
[1672890639275,20.0,13.189,13.178,56.95]
[1672890639584,41.44302936,13.188,13.178,20.0]
[1672890639797,20.0,13.187,13.179,56.95]
[1672890640630,20.0,13.187,13.178,56.95]
[1672890641560,20.0,13.187,13.177,56.95]
[1672890643880,20.0,13.187,13.177,283.35]
[1672890649577,20.0,13.187,13.178,20.0]
[1672890649887,20.0,13.187,13.177,283.35]
[1672890650098,20.0,13.187,13.177,56.95]
[1672890652075,20.0,13.187,13.178,20.0]
[1672890652495,20.0,13.187,13.18,20.0]
[1672890653043,20.0,13.187,13.179,56.95]
[1672890653445,20.0,13.187,13.179,20.0]
[1672890653668,20.0,13.187,13.178,76.95]
[1672890653865,20.0,13.187,13.178,56.84235327]
[1672890654712,20.0,13.187,13.177,56.95]
[1672890659126,20.0,13.186,13.17,56.98]
[1672890659335,137.09591474,13.186,13.17,56.98]
[1672890659554,20.0,13.184,13.169,20.0]
[1672890659765,20.0,13.183,13.169,20.0]
[1672890659982,20.0,13.182,13.17,56.98]
[1672890660186,63.37269497,13.183,13.172,20.0]
[1672890660509,20.0,13.183,13.172,20.0]
[1672890660703,20.0,13.186,13.174,226.4]
[1672890661033,20.0,13.186,13.175,20.0]
[1672890661237,20.0,13.186,13.177,20.0]
[1672890661436,70.7470906,13.186,13.177,20.0]
[1672890661647,114.11978557,13.186,13.177,76.95]
[1672890662185,114.11978557,13.186,13.177,56.95]
[1672890662396,114.11978557,13.186,13.175,303.36]
[1672890662616,22.65961325,13.185,13.175,303.36]
[1672890662821,20.0,13.184,13.175,303.36]
[1672890663013,20.0,13.184,13.175,283.36]
[1672890667651,20.0,13.185,13.175,283.36]
[1672890668058,20.0,13.185,13.176,20.0]
[1672890669649,20.0,13.185,13.175,283.36]
[1672890669968,88.57281445,13.185,13.175,283.36]
[1672890670178,88.57281445,13.185,13.175,226.4]
[1672890670892,131.94550942,13.185,13.174,118.9115]
[1672890671105,131.94550942,13.185,13.174,345.3115]
[1672890671315,131.94550942,13.185,13.176,20.0]
[1672890671541,131.94550942,13.185,13.175,56.96]
[1672890671732,131.94550942,13.185,13.174,118.9115]
[1672890671939,131.94550942,13.185,13.174,345.3115]
[1672890675831,131.94550942,13.185,13.174,118.9115]
[1672890676043,20.0,13.184,13.174,118.9115]
[1672890676475,93.40670385,13.183,13.174,118.9115]
[1672890676685,20.0,13.182,13.174,118.9115]
[1672890676893,65.94918069,13.182,13.174,118.9115]
[1672890678457,65.94918069,13.182,13.172,132.75]
[1672890678682,73.40670385,13.181,13.171,341.5887]
[1672890678882,73.40670385,13.181,13.172,56.98]
[1672890680051,73.40670385,13.181,13.172,132.75]
[1672890680261,73.40670385,13.181,13.172,75.77]
[1672890682470,73.40670385,13.181,13.171,341.5887]
[1672890685950,73.3031593,13.181,13.172,20.0]
[1672890686259,73.3031593,13.181,13.171,341.5887]
[1672890687205,73.3031593,13.181,13.171,115.1887]
[1672890688785,116.67585427,13.181,13.171,115.1887]
[1672890691304,116.67585427,13.181,13.171,341.5887]
[1672890692250,116.67585427,13.181,13.172,20.0]
[1672890693193,73.3031593,13.181,13.174,20.0]
[1672890694157,73.3031593,13.181,13.172,246.4]
[1672890696260,50.64354605,13.181,13.172,246.4]
[1672890700661,50.64354605,13.181,13.174,20.0]
[1672890700876,50.64354605,13.181,13.174,246.4]
[1672890702343,20.0,13.183,13.174,246.4]
[1672890702556,20.0,13.184,13.174,365.9299]
[1672890703054,65.82760437,13.184,13.174,119.5299]
[1672890703386,88.61738504,13.184,13.174,119.5299]
[1672890704747,88.61738504,13.184,13.175,20.0]
[1672890708856,88.61738504,13.184,13.174,345.9299]
[1672890714425,88.61738504,13.184,13.175,20.0]
[1672890716212,56.93,13.183,13.171,115.1887]
[1672890716434,56.93,13.183,13.17,226.4]
[1672890716732,20.0,13.181,13.166,57.0]
[1672890717159,145.55738504,13.18,13.164,226.4]
[1672890717356,145.55738504,13.18,13.166,226.4]
[1672890717559,73.52789741,13.179,13.167,20.0]
[1672890717765,20.0,13.178,13.167,95.77]
[1672890718002,99.73978067,13.178,13.168,226.4]
[1672890718191,22.78978067,13.177,13.168,283.39]
[1672890718399,20.0,13.187,13.171,226.4]
[1672890718606,22.78978067,13.181,13.173,20.0]
[1672890718815,22.78978067,13.181,13.173,246.4]
[1672890719040,22.78978067,13.181,13.174,17.0]
[1672890720840,56.92,13.186,13.173,322.17]
[1672890721044,56.91,13.187,13.176,20.0]
[1672890721358,20.0,13.186,13.178,20.0]
[1672890721580,20.0,13.187,13.178,20.0]
[1672890722296,165.1202,13.188,13.178,20.0]
[1672890722517,56.9,13.19,13.18,26.54]
[1672890722715,56.89,13.192,13.181,17.0]
[1672890722927,56.89,13.193,13.182,226.4]
[1672890723137,20.0,13.192,13.181,168.3876]
[1672890723369,20.0,13.192,13.181,111.4476]
[1672890723674,20.0,13.19,13.177,56.95]
[1672890723893,20.0,13.189,13.174,76.97]
[1672890724101,20.0,13.188,13.174,76.97]
[1672890724306,20.0,13.187,13.176,20.0]
[1672890724521,76.91,13.187,13.176,20.0]
[1672890724713,20.0,13.187,13.176,20.0]
[1672890724922,56.92,13.186,13.176,20.0]
[1672890725136,20.0,13.185,13.176,20.0]
[1672890725560,20.0,13.185,13.178,20.0]
[1672890726186,20.0,13.187,13.178,20.0]
[1672890726392,20.0,13.187,13.177,17.0]
[1672890726613,56.92,13.186,13.177,17.0]
[1672890726824,20.0,13.185,13.177,17.0]
[1672890727459,20.0,13.186,13.177,17.0]
[1672890727770,42.78978067,13.186,13.177,17.0]
[1672890727994,20.0,13.186,13.177,17.0]
[1672890728185,20.0,13.187,13.177,17.0]
[1672890728709,42.78978067,13.187,13.177,17.0]
[1672890731566,56.92,13.186,13.177,17.0]
[1672890731781,20.0,13.185,13.179,20.0]
[1672890732095,42.78978067,13.187,13.179,20.0]
[1672890732932,42.78978067,13.187,13.178,20.0]
[1672890734523,42.78978067,13.187,13.177,243.4]
[1672890735161,42.78978067,13.187,13.178,20.0]
[1672890738728,42.78978067,13.187,13.177,243.4]
[1672890739781,56.92,13.186,13.178,20.0]
[1672890739992,20.0,13.185,13.178,20.0]
[1672890740931,20.0,13.185,13.177,20.0]
[1672890744719,20.0,13.185,13.176,226.4]
[1672890745122,20.0,13.185,13.177,20.0]
[1672890748699,20.0,13.186,13.177,20.0]
[1672890749490,20.0,13.186,13.176,283.36]
[1672890751533,20.0,13.186,13.176,226.4]
[1672890751744,76.92,13.186,13.176,226.4]
[1672890752600,20.0,13.184,13.176,226.4]
[1672890752918,22.78978067,13.183,13.176,226.4]
[1672890754815,22.78978067,13.183,13.174,114.656]
[1672890755441,79.71978067,13.183,13.174,114.656]
[1672890755976,22.78978067,13.182,13.174,341.056]
[1672890766167,50.48745278,13.184,13.174,416.826]
[1672890766366,20.0,13.183,13.175,17.0]
[1672890766567,42.78978067,13.183,13.175,17.0]
[1672890766778,42.78978067,13.183,13.177,20.0]
[1672890771847,42.78978067,13.183,13.176,226.4]
[1672890774363,42.78978067,13.183,13.175,56.96]
[1672890774574,20.0,13.181,13.162,20.0]
[1672890774883,157.31244958,13.18,13.162,20.0]
[1672890775094,20.0,13.179,13.163,57.01]
[1672890775316,42.78978067,13.179,13.164,20.0]